Cogmind - Beta 14 @@@ ROGUE MODE // 2025.03.13 @ 23:38:47 Player: GDW Result: Destroyed by D-53 Grenadier with Mini Grenade Launcher Performance ------------- Evolutions (0) 0 Regions Visited (2) 400 Robots Destroyed (27) 135 Value Destroyed (490) 490 Prototype IDs (2) 40 Alien Tech Used (0) 0 Bonus (0) 0 TOTAL SCORE: 1065 Bonus ------- None Cogmind --------- Core Integrity 0/250 Matter 274/300 Energy 48/250 System Corruption 0% Temperature Cool (16) Movement Core (1450) Ox28 Location -10/Mines Parts ------- > --- POWER (1) -------- Ion Engine > --- PROPULSION (2) --- (None) > --- UTILITY (2) ------ Huge Storage Unit > --- WEAPON (2) ------- (None) > --- INVENTORY (25) --- Deuterium Engine Nuclear Core Light Treads Light Treads Compact Wheel Armored Wheel Large Storage Unit Compact Battery (200) Medium Matter Pod (0) Sensor Array Improved Terrain Scanner Core Shielding Light Assault Rifle Grenade Launcher Rocket Launcher Missile Launcher Missile Launcher Mining Claw Peak State ------------ > --- POWER ------------ Ion Engine > --- PROPULSION ------- Armored Wheel Armored Wheel > --- UTILITY ---------- Huge Storage Unit Light Armor Plating > --- WEAPON ----------- Shock Rifle Light Assault Rifle > --- INVENTORY -------- Deuterium Engine Nuclear Core Light Treads Light Treads Compact Wheel Armored Wheel Large Storage Unit Compact Battery Medium Matter Pod Sensor Array Improved Terrain Scanner Core Shielding Light Assault Rifle Grenade Launcher Rocket Launcher Missile Launcher Missile Launcher Mining Claw [Rating: 14] Favorites ----------- Power Ion Engine Engine Ion Engine Power Core Light Nuclear Core Propulsion Light Treads Treads Light Treads Wheel Armored Wheel Utility Seismic Detector Device Seismic Detector Storage Small Storage Unit Protection Light Armor Plating Weapon Assault Rifle Energy Gun Shock Rifle Ballistic Gun Assault Rifle Launcher Rocket Launcher Special Weapon Mining Laser Slashing Weapon Mining Claw Build | -11 -10 -10 ------- Run | Yrd Mat Min Slots Evolved . | . . . Power . | . . . Propulsion . | . . . Utility . | . . . Weapon . | . . . Parts Attached 32 | 8 12 12 Power 5 | 2 2 1 Engine 4 | 2 1 1 Core 1 | . 1 . Reactor . | . . . Propulsion 4 | 2 2 . Treads 2 | 2 . . Leg . | . . . Wheel 2 | . 2 . Hover . | . . . Flight . | . . . Utility 12 | 2 5 5 Device 5 | 1 2 2 Storage 3 | 1 2 . Processor . | . . . Hackware . | . . . Protection 4 | . 1 3 Artifact . | . . . Weapon 11 | 2 3 6 Energy Gun 1 | . . 1 Energy Cannon . | . . . Ballistic Gun 6 | 2 1 3 Ballistic Cannon . | . . . Launcher 2 | . . 2 Special Weapon 1 | . 1 . Impact Weapon . | . . . Slashing Weapon 1 | . 1 . Piercing Weapon . | . . . Special Melee Weapon . | . . . Unidentified Prototypes . | . . . Parts Lost 12 | . 1 11 Power 2 | . 1 1 Propulsion 2 | . . 2 Utility 4 | . . 4 Weapon 4 | . . 4 Highest Loss Streak 9 | . 1 9 To Critical Strikes . | . . . Average Slot Usage (%) 99 | . 99 100 Engine 7 | . 4 14 Core 6 | . 9 . Treads 17 | . 23 . Wheel 10 | . 4 28 Device 13 | . 13 13 Storage 14 | . 14 14 Ballistic Gun 27 | . 27 26 Peak Build Rating 14 | 7 12 14 Average Rating 9 | 5 8 10 On Entrance 5 | . 7 10 Naked Turns . | . . . Heaviest Build 92 | 14 91 92 Greatest Support 40 | 40 40 24 Greatest Overweight (x) 3 | . 3 3 Average Overweight (x) 1 | . . 3 Largest Inventory Capacity 25 | 8 25 25 Average Capacity 14 | 7 10 25 Most Carried 22 | 4 12 22 Average Carried 8 | 2 6 15 Final Capacity 25 | 8 25 25 Final Carried 18 | 3 12 18 Class Distribution -------------------- 100% | Mutant Dominant Class ---------------- Mutant | -10/Materials Mutant | -10/Mines Resources | -11 -10 -10 ----------- Run | Yrd Mat Min Matter Collected 886 | 319 326 241 Remotely . | . . . Salvage Created 785 | 148 482 155 Parts 63 | 14 40 9 Haulers Intercepted . | . . . Recyclers Shooed 3 | . 2 1 Parts Field Recycled . | . . . Retrieved Matter . | . . . Parts Self-Destructed . | . . . Prevented . | . . . Kills | -11 -10 -10 ------- Run | Yrd Mat Min Combat Hostiles Destroyed 35 | . 17 18 Guns 20 | . 17 3 AOE 15 | . . 15 Classes Destroyed 6 | 2 3 1 Tunneler 3 | 3 . . Recycler 2 | 1 . 1 Watcher 2 | . 2 . Swarmer 12 | . 9 3 Grunt 8 | . 8 . Assembled 15 | . . 15 Best Kill Streak 14 | 3 4 14 Combat Bots Only 14 | . 4 14 Max Kills in Single Turn 4 | 1 1 4 Gunslinging . | . . . Exploded 4 | . . 4 Melee . | . . . Uniques/NPCs Destroyed . | . . . Combat | -11 -10 -10 -------- Run | Yrd Mat Min Hostile Shots Fired 143 | . 93 50 Missed 43 | . 30 13 Damage Taken 1497 | . 616 881 Core 253 | . 127 126 Absorbed by Shields . | . . . Core Remaining (%) 100 | 100 . . Volleys Fired 106 | 11 75 20 Largest 2 | 2 2 2 Hottest 120 | 40 120 70 Shots Fired 207 | 22 150 35 Gun 201 | 22 149 30 Cannon . | . . . Launcher 5 | . . 5 Special 1 | . 1 . Kinetic 199 | 22 149 28 Thermal 1 | . 1 . Explosive 5 | . . 5 Electromagnetic 2 | . . 2 Robot Hit Streak 13 | 4 13 6 Robot Miss Streak 8 | 1 8 2 Penetration Max . | . . . Secondary Targets 1 | . 1 . Max Gunslinging Chain 1 | . 1 . Shots Hit Robots 118 | 14 80 24 Core Hits 73 | 6 35 32 Critical Kills 1 | . 1 . Critical Parts Destroyed . | . . . Critical Strikes 1 | . 1 . Destroy 1 | . 1 . Melee Attacks 2 | . 2 . Impact . | . . . Slashing 2 | . 2 . Piercing . | . . . Sneak Attacks . | . . . Combat Hostiles . | . . . Follow-up Attacks . | . . . Damage Inflicted 2349 | 135 888 1326 Guns 1218 | 135 888 195 Cannons . | . . . Explosions 1131 | . . 1131 Melee . | . . . Ramming . | . . . Kinetic 1190 | 135 888 167 Thermal . | . . . Explosive 1131 | . . 1131 Electromagnetic 28 | . . 28 Impact . | . . . Slashing . | . . . Piercing . | . . . Highest Corruption . | . . . Average Corruption . | . . . Corruption Purged . | . . . Corruption Blocked . | . . . Overload Shots . | . . . Overflow Damage 36 | . . 36 Projectiles . | . . . Explosions 36 | . . 36 Melee . | . . . Knockbacks . | . . . Impact . | . . . Kinetic . | . . . Secondary . | . . . Self-Inflicted Damage . | . . . Shots . | . . . Rammed . | . . . Targets Rammed . | . . . Kicked . | . . . Crushed . | . . . Highest Temperature 58 | . 58 36 Average Temperature 12 | . 12 13 Received Heat Transfer 248 | . 228 20 Siege Activations . | . . . Robots Corrupted . | . . . Combat Hostiles . | . . . Parts Fried . | . . . Impact Corruptions . | . . . Robots Melted . | . . . Combat Hostiles . | . . . Parts Melted . | . . . Heat Transferred . | . . . Parts Sabotaged . | . . . Parts Stolen . | . . . Parts Stripped . | . . . Power Chain Reactions . | . . . Alert | -11 -10 -10 ------- Run | Yrd Mat Min Peak Influence 273 | 20 273 166 Initial 49 | . 13 49 Average 78 | 9 94 55 Maximum Alert Level 1 | . 1 . Low Security (%) 95 | 100 92 100 Level 1 4 | . 7 . Level 2 . | . . . Level 3 . | . . . Level 4 . | . . . Level 5 . | . . . High Security . | . . . Max Security . | . . . Squads Dispatched 3 | . 2 1 Investigation 2 | . 1 1 Extermination . | . . . Reinforcement 1 | . 1 . Assault . | . . . Garrison . | . . . Intercept . | . . . Searches Triggered . | . . . Construction Impeded . | . . . Haulers Reinforced . | . . . Active Scanning Responses . | . . . Cargo Convoy Interrupts . | . . . Stealth | -11 -10 -10 --------- Run | Yrd Mat Min Distress Signals 1 | . 1 . Communications Jammed . | . . . Distress Signals . | . . . Times Spotted 52 | . 31 21 Peak Tracking Total 16 | . 5 16 Tactical Retreats 4 | . 3 1 Traps | -11 -10 -10 ------- Run | Yrd Mat Min Traps Triggered 1 | . 1 . Indirectly . | . . . Trap Hack Attempts . | . . . Triggered . | . . . Disarmed . | . . . Reprogrammed . | . . . Reused . | . . . Traps Extracted . | . . . Installed . | . . . Triggered . | . . . Machines | -11 -10 -10 ---------- Run | Yrd Mat Min Machines Disabled 2 | . 1 1 Max in Single Turn 1 | . 1 1 Machines Repaired . | . . . Machines Dismantled . | . . . Machines Sabotaged . | . . . Overloaded Fab Kills . | . . . Hacking | -11 -10 -10 --------- Run | Yrd Mat Min Machines Accessed 6 | . 5 1 Terminals 5 | . 5 . Fabricators . | . . . Repair Stations . | . . . Recycling Units . | . . . Scanalyzers . | . . . Garrison Access . | . . . Total Hacks 15 | . 14 1 Successful 7 | . 6 1 Failed 8 | . 8 . Catastrophic . | . . . Database Lockouts . | . . . Manual 9 | . 9 . Terminals 14 | . 14 . Fabricators . | . . . Repair Stations . | . . . Recycling Units . | . . . Scanalyzers . | . . . Garrison Access . | . . . Terminal Hacks 5 | . 4 1 Prototype ID Bank 1 | . 1 . Open Door 1 | . . 1 Branch Access Points 1 | . 1 . Locate Traps 1 | . 1 . Hauler Manifests 1 | . 1 . Fabricator Hacks . | . . . Repair Station Hacks . | . . . Recycling Unit Hacks . | . . . Scanalyzer . | . . . Garrison Access Hacks . | . . . Unauthorized Hacks 2 | . 2 . Terminals 2 | . 2 . Botnet 2 | . 2 . Fabricators . | . . . Repair Stations . | . . . Recycling Units . | . . . Scanalyzers . | . . . Garrison Access . | . . . Data Cores Recovered . | . . . Used . | . . . Hacking Detections 3 | . 3 . Full Trace Events . | . . . Feedback Events . | . . . Feedback Blocked . | . . . Robot Schematics Acquired . | . . . Robots Built . | . . . Authchips . | . . . Time . | . . . Total Robot Build Rating . | . . . Part Schematics Acquired . | . . . Parts Built . | . . . Authchips . | . . . Time . | . . . Total Part Build Rating . | . . . Parts Repaired . | . . . Time . | . . . Parts Recycled . | . . . Recycled Matter . | . . . Retrieved Matter . | . . . Retrieved Components . | . . . Parts Scanalyzed . | . . . Part Schematics Acquired . | . . . Parts Damaged . | . . . Bothacking | -11 -10 -10 ------------ Run | Yrd Mat Min Used RIF Installer . | . . . Robots Hacked . | . . . Non-combat . | . . . Combat . | . . . Robot Hacks Applied . | . . . Relay Couplers Released . | . . . Fabnet Peak Effective % . | . . . Robots Rewired . | . . . Allies Hacked . | . . . Hacks Repelled . | . . . Allies | -11 -10 -10 -------- Run | Yrd Mat Min Total Allies . | . . . Largest Group . | . . . Highest-Rated Group . | . . . Highest-Rated Ally . | . . . Total Orders . | . . . Ally Attacks . | . . . Total Damage . | . . . Kills . | . . . Allies Corrupted . | . . . Allies Melted . | . . . Intel | -11 -10 -10 ------- Run | Yrd Mat Min Robot Analysis Total . | . . . Derelict Logs Recovered 1 | . . 1 Drone Launches . | . . . Drone Recoveries . | . . . Exploration | -11 -10 -10 ------------- Run | Yrd Mat Min Turns Passed 2832 | 175 1935 722 Spaces Moved 1457 | 84 946 427 Core 3 | 3 . . Treads 867 | 81 786 . Legs . | . . . Wheels 587 | . 160 427 Hover . | . . . Flight . | . . . Fastest Speed 50 | 50 135 135 Average Speed 149 | 156 155 135 Slowest Speed 160 | 160 160 135 Overloaded Moves . | . . . Propulsion Burnouts . | . . . Robots Hopped . | . . . Cave-ins Triggered . | . . . Exploration Rate (%) 55 | 6 94 67 Regions Visited 2 Branch Regions 1 Pre-discovered Areas 1 | . . 1 Known Exits Taken 1 | . 1 . Unknown Exits Taken 1 | 1 . . Scrap Searched 1 | . . 1 Spaces Dug 3 | . 3 . Terrain Destroyed 53 | . 3 50 Melee 2 | . 2 . Projectile 1 | . 1 . AOE 50 | . . 50 Terrain Rammed . | . . . Walls Destroyed . | . . . Machines Disabled . | . . . Actions | -11 -10 -10 --------- Run | Yrd Mat Min Total 1906 | 105 1264 537 Wait 279 | . 213 66 Move 1455 | 83 945 427 Hop . | . . . Pick Up 26 | 3 11 12 Fast Attach 7 | 6 1 . Attach 7 | 1 . 6 Detach . | . . . Swap 18 | 1 11 6 Drop 6 | . 6 . Fire 106 | 11 75 20 Melee 2 | . 2 . Ram . | . . . Kick . | . . . Crush . | . . . Escape Stasis . | . . . Rewire . | . . . Trap . | . . . Miscellaneous . | . . . Route ------- -11/Scrapyard -10/Materials (discovered 5 exits: [*Mat x3] / *Min x2) -10/Mines (discovered 2 exits: [*Mat] / [*Sub]) History --------- Turn | Location | Event 6 | -11/Scrapyard | Discovered new exit (range 15) 176 | -11/Scrapyard | Entered Materials 310 | -10/Materials | Build established: Mutant 854 | -10/Materials | Discovered new exit (range 9) 1131 | -10/Materials | Identified exit to Mines 1680 | -10/Materials | Discovered new exit (range 16) 1874 | -10/Materials | Discovered new exit (range 16) 1892 | -10/Materials | Core integrity fell below 50% 2111 | -10/Materials | Entered Mines 2118 | -10/Mines | Received a Rocket Launcher from a helpful Derelict 2131 | -10/Mines | Assembled infested the area 2186 | -10/Mines | Destroyed 14 combat bots 2348 | -10/Mines | Learned 2 Materials zone layouts 2355 | -10/Mines | Discovered new exit (range 8) 2440 | -10/Mines | Learned location of Storage (-7) 2624 | -10/Mines | Met a Derelict shopkeep closing up shop 2819 | -10/Mines | Discovered new exit (range 12) 2825 | -10/Mines | Core integrity fell below 20% 2833 | -10/Mines | Destroyed by D-53 Grenadier with Mini Grenade Launcher Last Messages --------------- 02631_ Acquired Shock Rifle. 02635_ Acquired Deuterium Engine. 02637_ Acquired Nuclear Core. 02640_ Acquired Missile Launcher. 02718_ K-01 Serf cleans the Pressure Siphon. 02729_ K-01 Serf collects debris. 02738_ Acquired 47 matter. 02740_ Acquired 42 matter. 02741_ K-01 Serf collects debris. 02819_ EXIT=FOUND 02821_ Ion Engine destroyed. 02821_ Seismic Detector destroyed. 02823_ Lgt. Armor Plating destroyed. 02823_ K-01 Serf destroyed. 02825_ Assault Rifle destroyed. 02830_ Lgt. Assault Rifle destroyed. 02831_ Shock Rifle destroyed. 02832_ Lgt. Armor Plating destroyed. 02833_ Arm. Wheel destroyed. Map ----- +----------------------------------------------------+ | ?????# ###???????## #? | | ###### #?????????# #?? | | #?????????# ##?? | | ########?????????# ####??? | | #???????????????## ##?????? | | #???????????????# ##??????? | | ????????????????# ##??????? | | ????????????????## ##?????? | | #?????????###???## ##????? | | ##???????## ### #????? | | #???????# #????? | | #???????# ##???? | | #???????## ##??? | | #????????####### #??? | | ##??####??####??## #??? | | #??## #### ##### ##??? | | ##?# ## ##???? | | ### ##???? | | ### """ ######## #???? | | ### """ ##??????## #???? | | ### """ #????????# ###?? | | #???????## ##? | | ##??????## ## | | # ## ###???????# # | | ## #####?????????# # | | ?## ?????????????# @ # | | ??# ????????????# | | ?? #???????????# # | | ?# ##???????????## # | | ?## #???????????? d # | | ??## ##??????????? ## | | ???####??????????? ###? | | ????????????????? ##??? | | ???????????????? r d ##???? | | ??????????????? #?????? | | ?????????????? ## #??????? | | ?????????????? #?## ???????? | | ???????????????? ???# ???????? | | ????????????????????? ???????? | | ?????????????????????#????????? | | ??????????????????????????????? | | ??????????????????????????????? | | ??????????????????????????????? | | ??????????????????????????????? | | ??????????????????????????????? | | ??????????????????????????????? | | ??????????????????????????????? | | ??????????????????????????????? | | ??????????????????????????????? | | ??????????????????????????????? | +----------------------------------------------------+ Best States ------------- Heat Dissipation 25 Energy Generation 14 Energy Capacity 250 Matter Stores 300 Matter Capacity 300 Sight Range 16 Terrain Scan Density 10 Armor Coverage 150 Evasion (%) 40 Recoil Reduction 2 Item Schematics ----------------- None Robot Schematics ------------------ None Fabricated ------------ Nothing Alien Tech Used ----------------- None Achievements -------------- Exterminator Challenges ------------ None Game ------ Seed ZioniteDisruptorCompanion Manual? 0 Play Time 00:34:44 Cumulative 28.1 hours Start 2025.03.13 @ 22:41:24 End 2025.03.13 @ 23:38:47 Sessions 1 Manual Loads 0 Difficulty Rogue Special Mode None Game No. 17 Rogue 17 Adventurer 0 Explorer 0 Win Type - Total 0 Types 0/0/0/0/0/0/0/0/0 Lore% 15 Gallery% 27 Achievement% 23 Wizard Run 0 Options --------- Layout 2 ASCII 0 Keyboard 0 Movement Mouse Keybinds 0 Fullscreen 1 Font 24/Smallcaps Map View 50x44 Zoom Use 0% Tactical HUD 1 Map Filters NONE Filters NONE Steam 1 RUN: 23d9a2b2-148b-4bea-8f78-885bcae5c4b6